Cogmind - Beta 14 @@@ ROGUE MODE // 2024.08.18 @ 00:24:58 Player: Lillith Result: Destroyed by D-53 Grenadier with Mini Grenade Launcher Performance ------------- Evolutions (0) 0 Regions Visited (2) 400 Robots Destroyed (29) 145 Value Destroyed (623) 623 Prototype IDs (0) 0 Alien Tech Used (0) 0 Bonus (0) 0 TOTAL SCORE: 1168 Bonus ------- None Cogmind --------- Core Integrity 0/250 Matter 300/300 Energy 125/125 System Corruption 0% Temperature Cool (20) Movement Walking (260) Ox2 Location -10/Mines Parts ------- > --- POWER (1) -------- Light Ion Engine > --- PROPULSION (2) --- Aluminum Leg Aluminum Leg > --- UTILITY (2) ------ High-capacity Storage Unit Structural Scanner > --- WEAPON (2) ------- Assault Rifle Assault Rifle > --- INVENTORY (20) --- Light Nuclear Core Aluminum Leg Medium Storage Unit Light Armor Plating Light Armor Plating Hacking Suite Hacking Suite Assault Rifle Assault Rifle Assault Rifle Assault Rifle Assault Rifle Assault Rifle Assault Rifle Assault Rifle Assault Rifle Hammer Blade Trap Blade Trap Blade Trap Peak State ------------ > --- POWER ------------ Ion Engine > --- PROPULSION ------- Light Treads Light Treads > --- UTILITY ---------- High-capacity Storage Unit Structural Scanner > --- WEAPON ----------- Medium Laser Assault Rifle > --- INVENTORY -------- Light Ion Engine Light Ion Engine Light Treads Wheel Compact Wheel Small Storage Unit Medium Storage Unit Light Armor Plating Light Armor Plating Hacking Suite Hacking Suite Small Laser Beam Cannon Assault Rifle Light Cannon Light Cannon Hammer [Rating: 9] Favorites ----------- Power Light Ion Engine Engine Light Ion Engine Propulsion Light Treads Treads Light Treads Leg Aluminum Leg Utility High-capacity Storage Unit Device Structural Scanner Storage High-capacity Storage Unit Weapon Assault Rifle Energy Gun Medium Laser Ballistic Gun Assault Rifle Build | -11 -10 -10 ------- Run | Yrd Mat Min Slots Evolved . | . . . Power . | . . . Propulsion . | . . . Utility . | . . . Weapon . | . . . Parts Attached 21 | 7 12 2 Power 3 | 1 2 . Engine 3 | 1 2 . Core . | . . . Reactor . | . . . Propulsion 8 | 2 4 2 Treads 4 | 2 2 . Leg 4 | . 2 2 Wheel . | . . . Hover . | . . . Flight . | . . . Utility 4 | 2 2 . Device 2 | 1 1 . Storage 2 | 1 1 . Processor . | . . . Hackware . | . . . Protection . | . . . Artifact . | . . . Weapon 6 | 2 4 . Energy Gun 2 | 1 1 . Energy Cannon . | . . . Ballistic Gun 4 | 1 3 . Ballistic Cannon . | . . . Launcher . | . . . Special Weapon . | . . . Impact Weapon . | . . . Slashing Weapon . | . . . Piercing Weapon . | . . . Special Melee Weapon . | . . . Unidentified Prototypes . | . . . Parts Lost 4 | . 4 . Power 1 | . 1 . Propulsion 1 | . 1 . Utility 1 | . 1 . Weapon 1 | . 1 . Highest Loss Streak 3 | . 3 . To Critical Strikes . | . . . Average Slot Usage (%) 95 | . 94 100 Engine 13 | . 13 14 Treads 19 | . 24 . Leg 8 | . 3 28 Device 11 | . 10 14 Storage 14 | . 14 14 Energy Gun 9 | . 11 . Ballistic Gun 18 | . 15 28 Peak Build Rating 9 | 7 9 9 Average Rating 7 | 4 7 9 On Entrance 5 | . 7 9 Naked Turns . | . . . Heaviest Build 50 | 13 50 48 Greatest Support 40 | 40 40 20 Greatest Overweight (x) 4 | . 4 2 Average Overweight (x) 1 | . 1 2 Largest Inventory Capacity 20 | 8 20 20 Average Capacity 18 | 6 19 20 Most Carried 20 | 5 20 20 Average Carried 13 | 3 11 19 Final Capacity 20 | 8 20 20 Final Carried 20 | 5 19 20 Class Distribution -------------------- 100% | Mutant Dominant Class ---------------- Mutant | -10/Materials Mutant | -10/Mines Resources | -11 -10 -10 ----------- Run | Yrd Mat Min Matter Collected 824 | 298 416 110 Remotely . | . . . Salvage Created 916 | 82 647 187 Parts 50 | 7 37 6 Haulers Intercepted 1 | . 1 . Recyclers Shooed . | . . . Parts Field Recycled . | . . . Retrieved Matter . | . . . Parts Self-Destructed . | . . . Prevented . | . . . Kills | -11 -10 -10 ------- Run | Yrd Mat Min Combat Hostiles Destroyed 15 | . 12 3 Guns 15 | . 12 3 Classes Destroyed 8 | 2 6 . Worker 6 | 2 3 1 Builder 2 | . 2 . Tunneler 1 | 1 . . Hauler 1 | . 1 . Operator 3 | . 3 . Watcher 1 | . 1 . Swarmer 2 | . 2 . Grunt 13 | . 10 3 Best Kill Streak 3 | 3 2 2 Combat Bots Only 2 | . 2 2 Max Kills in Single Turn 2 | 1 2 1 Gunslinging 1 | . 1 . Exploded . | . . . Melee . | . . . Uniques/NPCs Destroyed . | . . . Combat | -11 -10 -10 -------- Run | Yrd Mat Min Hostile Shots Fired 117 | . 98 19 Missed 31 | . 26 5 Damage Taken 1077 | . 842 235 Core 255 | . 158 97 Absorbed by Shields . | . . . Core Remaining (%) 100 | 100 . . Volleys Fired 103 | 8 85 10 Largest 2 | 2 2 2 Hottest 70 | 70 70 40 Shots Fired 185 | 16 149 20 Gun 185 | 16 149 20 Cannon . | . . . Launcher . | . . . Special . | . . . Kinetic 114 | 8 86 20 Thermal 71 | 8 63 . Explosive . | . . . Electromagnetic . | . . . Robot Hit Streak 14 | 4 14 10 Robot Miss Streak 7 | 1 7 2 Penetration Max . | . . . Secondary Targets 1 | . 1 . Max Gunslinging Chain 1 | . 1 . Shots Hit Robots 115 | 11 90 14 Core Hits 47 | 3 34 10 Critical Kills . | . . . Critical Parts Destroyed 1 | . . 1 Critical Strikes 4 | . 3 1 Burn 3 | . 3 . Destroy 1 | . . 1 Melee Attacks . | . . . Impact . | . . . Slashing . | . . . Piercing . | . . . Sneak Attacks . | . . . Combat Hostiles . | . . . Follow-up Attacks . | . . . Damage Inflicted 1557 | 137 1235 185 Guns 1544 | 137 1222 185 Cannons . | . . . Explosions . | . . . Melee . | . . . Ramming 13 | . 13 . Kinetic 960 | 76 699 185 Thermal 584 | 61 523 . Explosive . | . . . Electromagnetic . | . . . Impact . | . . . Slashing . | . . . Piercing . | . . . Highest Corruption . | . . . Average Corruption . | . . . Corruption Purged . | . . . Corruption Blocked . | . . . Overload Shots . | . . . Overflow Damage . | . . . Projectiles . | . . . Explosions . | . . . Melee . | . . . Knockbacks . | . . . Impact . | . . . Kinetic . | . . . Secondary . | . . . Self-Inflicted Damage . | . . . Shots . | . . . Rammed 1 | . 1 . Targets Rammed 1 | . 1 . Kicked . | . . . Crushed . | . . . Highest Temperature 267 | 54 267 21 Average Temperature 49 | 24 54 11 Received Heat Transfer 562 | . 432 130 Siege Activations . | . . . Robots Corrupted . | . . . Combat Hostiles . | . . . Parts Fried . | . . . Impact Corruptions . | . . . Robots Melted . | . . . Combat Hostiles . | . . . Parts Melted 1 | . 1 . Heat Transferred 1924 | 185 1739 . Parts Sabotaged . | . . . Parts Stolen . | . . . Parts Stripped . | . . . Power Chain Reactions . | . . . Alert | -11 -10 -10 ------- Run | Yrd Mat Min Peak Influence 166 | 15 166 67 Initial 9 | . 9 5 Average 33 | 2 36 24 Maximum Alert Level . | . . . Low Security (%) 100 | 100 100 100 Level 1 . | . . . Level 2 . | . . . Level 3 . | . . . Level 4 . | . . . Level 5 . | . . . High Security . | . . . Max Security . | . . . Squads Dispatched 2 | . 2 . Investigation . | . . . Extermination . | . . . Reinforcement 2 | . 2 . Assault . | . . . Garrison . | . . . Intercept . | . . . Searches Triggered . | . . . Construction Impeded . | . . . Haulers Reinforced . | . . . Active Scanning Responses . | . . . Cargo Convoy Interrupts . | . . . Stealth | -11 -10 -10 --------- Run | Yrd Mat Min Distress Signals 1 | . 1 . Communications Jammed . | . . . Distress Signals . | . . . Times Spotted 45 | . 24 21 Peak Tracking Total 20 | . 3 20 Tactical Retreats 1 | . . 1 Traps | -11 -10 -10 ------- Run | Yrd Mat Min Traps Triggered 1 | . 1 . Indirectly . | . . . Trap Hack Attempts . | . . . Triggered . | . . . Disarmed . | . . . Reprogrammed . | . . . Reused . | . . . Traps Extracted . | . . . Installed . | . . . Triggered . | . . . Most Traps Carried 3 | . . 3 Machines | -11 -10 -10 ---------- Run | Yrd Mat Min Machines Disabled 2 | . 2 . Max in Single Turn 1 | . 1 . Machines Repaired . | . . . Machines Dismantled . | . . . Machines Sabotaged . | . . . Overloaded Fab Kills . | . . . Hacking | -11 -10 -10 --------- Run | Yrd Mat Min Machines Accessed 7 | . 5 2 Terminals 5 | . 3 2 Fabricators . | . . . Repair Stations . | . . . Recycling Units 2 | . 2 . Scanalyzers . | . . . Garrison Access . | . . . Total Hacks 24 | . 15 9 Successful 8 | . 6 2 Failed 15 | . 8 7 Catastrophic 3 | . 1 2 Database Lockouts 1 | . 1 . Manual 25 | . 16 9 Terminals 21 | . 12 9 Fabricators . | . . . Repair Stations . | . . . Recycling Units 3 | . 3 . Scanalyzers . | . . . Garrison Access . | . . . Terminal Hacks 3 | . 1 2 Robot Analysis 3 | . 1 2 Fabricator Hacks . | . . . Repair Station Hacks . | . . . Recycling Unit Hacks 1 | . 1 . Retrieve Components 1 | . 1 . Scanalyzer . | . . . Garrison Access Hacks . | . . . Unauthorized Hacks 4 | . 4 . Terminals 4 | . 4 . Botnet 2 | . 2 . Skim 2 | . 2 . Fabricators . | . . . Repair Stations . | . . . Recycling Units . | . . . Scanalyzers . | . . . Garrison Access . | . . . Data Cores Recovered . | . . . Used . | . . . Hacking Detections 7 | . 5 2 Full Trace Events 4 | . 2 2 Feedback Events . | . . . Feedback Blocked . | . . . Robot Schematics Acquired . | . . . Robots Built . | . . . Authchips . | . . . Time . | . . . Total Robot Build Rating . | . . . Part Schematics Acquired . | . . . Parts Built . | . . . Authchips . | . . . Time . | . . . Total Part Build Rating . | . . . Parts Repaired . | . . . Time . | . . . Parts Recycled . | . . . Recycled Matter . | . . . Retrieved Matter . | . . . Retrieved Components 10 | . 10 . Parts Scanalyzed . | . . . Part Schematics Acquired . | . . . Parts Damaged . | . . . Bothacking | -11 -10 -10 ------------ Run | Yrd Mat Min Used RIF Installer . | . . . Robots Hacked . | . . . Non-combat . | . . . Combat . | . . . Robot Hacks Applied . | . . . Relay Couplers Released . | . . . Fabnet Peak Effective % . | . . . Robots Rewired . | . . . Allies Hacked . | . . . Hacks Repelled . | . . . Allies | -11 -10 -10 -------- Run | Yrd Mat Min Total Allies . | . . . Largest Group . | . . . Highest-Rated Group . | . . . Highest-Rated Ally . | . . . Total Orders . | . . . Ally Attacks . | . . . Total Damage . | . . . Kills . | . . . Allies Corrupted . | . . . Allies Melted . | . . . Intel | -11 -10 -10 ------- Run | Yrd Mat Min Robot Analysis Total 3 | . 1 2 Derelict Logs Recovered . | . . . Drone Launches . | . . . Drone Recoveries . | . . . Exploration | -11 -10 -10 ------------- Run | Yrd Mat Min Turns Passed 2911 | 117 2234 560 Spaces Moved 1071 | 53 817 201 Core 6 | 6 . . Treads 769 | 47 722 . Legs 296 | . 95 201 Wheels . | . . . Hover . | . . . Flight . | . . . Fastest Speed 50 | 50 160 260 Average Speed 237 | 147 237 260 Slowest Speed 400 | 160 400 260 Overloaded Moves . | . . . Propulsion Burnouts . | . . . Robots Hopped . | . . . Cave-ins Triggered . | . . . Exploration Rate (%) 42 | 4 86 38 Regions Visited 2 Branch Regions 1 Pre-discovered Areas . | . . . Known Exits Taken . | . . . Unknown Exits Taken 2 | 1 1 . Scrap Searched . | . . . Spaces Dug . | . . . Terrain Destroyed . | . . . Melee . | . . . Projectile . | . . . AOE . | . . . Terrain Rammed . | . . . Walls Destroyed . | . . . Machines Disabled . | . . . Actions | -11 -10 -10 --------- Run | Yrd Mat Min Total 1257 | 72 963 222 Wait 18 | . 18 . Move 1069 | 52 816 201 Hop . | . . . Pick Up 29 | 5 20 4 Fast Attach 14 | 7 7 . Attach 2 | . 2 . Detach 2 | . 2 . Swap 5 | . 3 2 Drop 14 | . 9 5 Fire 103 | 8 85 10 Melee . | . . . Ram . | . . . Kick . | . . . Crush 1 | . 1 . Escape Stasis . | . . . Rewire . | . . . Trap . | . . . Miscellaneous . | . . . Route ------- -11/Scrapyard -10/Materials (discovered 6 exits: [*Mat x3] / *Min x2 / [*Sub]) -10/Mines (discovered 3 exits: [*Mat x2] / [Exi]) History --------- Turn | Location | Event 30 | -11/Scrapyard | Discovered new exit (range 15) 118 | -11/Scrapyard | Entered Materials 306 | -10/Materials | Build established: Mutant 402 | -10/Materials | Discovered new exit (range 10) 1044 | -10/Materials | Central database locked down 1322 | -10/Materials | Discovered new exit (range 9) 1684 | -10/Materials | Discovered new exit (range 8) 1829 | -10/Materials | Discovered new exit (range 16) 1975 | -10/Materials | Discovered new exit (range 14) 2077 | -10/Materials | Core integrity fell below 50% 2087 | -10/Materials | Lost 3 parts (1p1n1w) 2165 | -10/Materials | Discovered new exit (range 10) 2352 | -10/Materials | Entered Mines 2391 | -10/Mines | Discovered new exit (range 5) 2446 | -10/Mines | Deemed a non-threat by the Exiles lab entrance 2446 | -10/Mines | Discovered new exit (range 6) 2632 | -10/Mines | Found a hidden stash of uninstalled traps 2720 | -10/Mines | Discovered new exit (range 4) 2888 | -10/Mines | Assembled infested the area 2893 | -10/Mines | Assisted by a Guerilla fighting off Assembled 2911 | -10/Mines | Core integrity fell below 20% 2912 | -10/Mines | Destroyed by D-53 Grenadier with Mini Grenade Launcher Last Messages --------------- 02835_ G-47 Trooper destroyed. 02841_ G-34 Mercenary destroyed. 02852_ Dropped Aluminum Leg. 02856_ Acquired 40 matter. 02888_ ALERT: Infestation in the mines, dispatching Demolisher response squad. 02893_ A derelict emerges from the shadows: "You need to get out of here! I've been tracking a group of Assembled to figure out where they're coming from, and they're closing on this area, come on!" 02893_ R-06 Scavenger collects Particle Gun. 02896_ R-06 Scavenger collects Aluminum Leg. 02900_ R-06 Scavenger collects Heat Sink. [Achievement: Hunted] 02903_ R-06 Scavenger destroyed. 02905_ as-41169 sneak attacks. 02905_ R-06 Scavenger knocked back. 02906_ R-06 Scavenger destroyed. 02912_ as-89618 destroyed. Map ----- +----------------------------------------------------+ | ??###### ###???????????## ## ###???????????? | | ##### ##???????????## ## ##???????????? | | #### ##???????????## ### ##???????????? | | ## ??????????????########## ##???????????? | | # ##??????????????########## ##???????????? | | # #########???????????????## ##???????????? | | ## #######################?## ##???????????? | | ## #### ################?## ##???????????? | | ## ## ##### ##???????????? | | ## ############# ##### ##???????????? | | # ############# % ##???????????? | | ##????????######## ##???????????? | | ###???????######## ##???????????? | | ## ### ###???????#### ###??????????? | | ## ######## ##??????#### ####?????????? | | ## ######### ###??????### ####????????? | | ### ##????### ####??????## ###????????? | | #### ????? ###???????## ###???????? | | ?### ###????? ##????????### ###???????? | | ??# ###????? ##????????######## & ##???????? | | ?? ##?????? ##??????########### ##???????? | | ?? #?????? ##?????############# ###???????? | | ## ##???? ##????#### ######### ###???????? | | # #### ###???? #########aa %a d%d##????????? | | ############? ######## a%=!!| ##????????? | | ####??#####??## @ %[a#########????????? | | ?????????????## t####a%#########????????? | | ?????????????### ######### !####????????????? | | ?????????????### ##########=*!###????????????? | | ??????????????### ??????????###%= ##????????????? | | ??????????????#### ??????????####= ##????????????? | | ???????????????### ???????????### ##????????????? | | ???????????????????????????????### ????????????? | | ???????????????????????????????#### ????????????? | | ?????????????????????????????????### ???????????? | | ??????????????????????????????????## ??????????? | | ???????????????????????????????????? ?????????? | | ????????????????????????????????????? ????????? | | ????????????????????????????????????? ???????? | | ?????????????????????????????????????? ???????? | | ?????????????????????????????????????? ##?????? | | ??????????????????????????????????????? ##?????? | | ???????????????????????????????????????? ##?????? | | ?????????????????????????????????????????????????? | | ?????????????????????????????????????????????????? | | ?????????????????????????????????????????????????? | | ?????????????????????????????????????????????????? | | ?????????????????????????????????????????????????? | | ?????????????????????????????????????????????????? | | ?????????????????????????????????????????????????? | +----------------------------------------------------+ Best States ------------- Heat Dissipation 25 Energy Generation 10 Energy Capacity 250 Matter Stores 300 Matter Capacity 300 Sight Range 16 Terrain Scan Density 10 Evasion (%) 40 Recoil Reduction 2 Item Schematics ----------------- None Robot Schematics ------------------ None Fabricated ------------ Nothing Alien Tech Used ----------------- None Achievements -------------- Hunted Challenges ------------ None Game ------ Seed RelayVampiricBeacon Manual? 0 Play Time 00:13:11 Cumulative 32.5 hours Start 2024.08.17 @ 23:01:04 End 2024.08.18 @ 00:24:58 Sessions 1 Manual Loads 0 Difficulty Rogue Special Mode None Game No. 55 Rogue 55 Adventurer 0 Explorer 0 Win Type - Total 0 Types 0/0/0/0/0/0/0/0/0 Lore% 35 Gallery% 29 Achievement% 28 Wizard Run 0 Options --------- Layout 2 ASCII 0 Keyboard 1 Movement Arrows Keybinds 0 Fullscreen 2 Font 32/SmallcapsGlow Map View 50x44 Zoom Use 0% Tactical HUD 1 Map Filters NONE Filters NONE Steam 1 RUN: 1153a516-e5ae-4f15-88be-8b9b3fd06d58